Cogmind - Beta 13 @@@ ROGUE MODE // 2024.04.23 @ 08:01:15 Player: Dosh Result: Destroyed by D-53 Grenadier with Mini Grenade Launcher Performance ------------- Evolutions (0) 0 Regions Visited (4) 800 Robots Destroyed (16) 80 Value Destroyed (272) 272 Prototype IDs (24) 480 Alien Tech Used (0) 0 Bonus (300) 300 TOTAL SCORE: 1932 Bonus ------- Aligned with FarCom 300 Cogmind --------- Core Integrity 0/250 Matter 260/300 Energy 99/100 System Corruption 0% Temperature Cool (0) Movement Rolling (95) Ox1 Location -9/Mines Parts ------- > --- POWER (1) -------- (None) > --- PROPULSION (2) --- Wheel > --- UTILITY (2) ------ Large Storage Unit > --- WEAPON (2) ------- (None) > --- INVENTORY (15) --- Ion Engine Light Treads Light Treads Light Treads Small Storage Unit Huge Storage Unit Experimental Sensor Array 0b10 Alert Chip EM Pulse Gun Small Laser Beam Cannon Beam Cannon Light Assault Rifle Light Assault Rifle Flail Peak State ------------ > --- POWER ------------ Ion Engine > --- PROPULSION ------- Light Treads Light Treads > --- UTILITY ---------- Large Storage Unit Experimental Sensor Array > --- WEAPON ----------- EM Pulse Gun Light Assault Rifle > --- INVENTORY -------- Ion Engine Light Treads Wheel Wheel Small Storage Unit Huge Storage Unit Light Armor Plating Small Laser Beam Cannon Beam Cannon Light Assault Rifle Light Assault Rifle Light Cannon Flail [Rating: 16] Favorites ----------- Power Ion Engine Engine Ion Engine Propulsion Light Treads Treads Light Treads Wheel Wheel Utility Large Storage Unit Device Experimental Sensor Array Storage Large Storage Unit Protection Light Armor Plating Weapon Light Assault Rifle Energy Gun EM Pulse Gun Ballistic Gun Light Assault Rifle Ballistic Cannon Light Cannon Build | -11 -10 -10 -10 -9 ------- Run | Yrd Mat Min Exi Min Slots Evolved . | . . . . . Power . | . . . . . Propulsion . | . . . . . Utility . | . . . . . Weapon . | . . . . . Parts Attached 18 | 6 5 3 3 1 Power 1 | 1 . . . . Engine 1 | 1 . . . . Core . | . . . . . Reactor . | . . . . . Propulsion 4 | 2 . . 2 . Treads 2 | 2 . . . . Leg . | . . . . . Wheel 2 | . . . 2 . Hover . | . . . . . Flight . | . . . . . Utility 5 | 1 2 2 . . Device 1 | . . 1 . . Storage 2 | 1 1 . . . Processor . | . . . . . Hackware . | . . . . . Protection 2 | . 1 1 . . Artifact . | . . . . . Weapon 8 | 2 3 1 1 1 Energy Gun 3 | 2 . 1 . . Energy Cannon . | . . . . . Ballistic Gun 4 | . 3 . . 1 Ballistic Cannon 1 | . . . 1 . Launcher . | . . . . . Special Weapon . | . . . . . Impact Weapon . | . . . . . Slashing Weapon . | . . . . . Piercing Weapon . | . . . . . Special Melee Weapon . | . . . . . Unidentified Prototypes 1 | . . 1 . . Parts Lost 6 | . . 1 . 5 Power 1 | . . . . 1 Propulsion 1 | . . . . 1 Utility 1 | . . . . 1 Weapon 3 | . . 1 . 2 Highest Loss Streak 5 | . . 1 . 5 To Critical Strikes . | . . . . . Average Slot Usage (%) 98 | . 93 100 100 96 Engine 13 | . 14 14 14 10 Treads 27 | . 28 28 26 . Storage 14 | . 14 14 14 14 Protection 12 | . 7 14 14 14 Energy Gun 12 | . 15 9 14 7 Ballistic Gun 15 | . 12 18 13 7 Naked Turns . | . . . . . Heaviest Build 33 | 13 32 31 33 33 Greatest Support 40 | 40 40 40 40 20 Greatest Overweight (x) 1 | . . . 1 1 Average Overweight (x) . | . . . . 1 Largest Inventory Capacity 15 | 8 15 15 15 15 Average Capacity 14 | 6 14 15 15 15 Most Carried 15 | 3 13 14 15 15 Average Carried 11 | 1 8 13 14 15 Final Capacity 15 | 8 15 15 15 15 Final Carried 15 | 3 13 14 15 15 Class Distribution -------------------- 100% | Mutant Dominant Class ---------------- Mutant | -10/Materials Mutant | -10/Mines Mutant | -10/Exiles Mutant | -9/Mines Resources | -11 -10 -10 -10 -9 ----------- Run | Yrd Mat Min Exi Min Matter Collected 423 | 184 128 77 . 34 Remotely . | . . . . . Salvage Created 449 | . 262 187 . . Parts 35 | . 23 12 . . Haulers Intercepted 1 | . 1 . . . Recyclers Shooed . | . . . . . Parts Field Recycled . | . . . . . Retrieved Matter . | . . . . . Parts Self-Destructed . | . . . . . Prevented . | . . . . . Kills | -11 -10 -10 -10 -9 ------- Run | Yrd Mat Min Exi Min Combat Hostiles Destroyed 10 | . 4 6 . . Guns 10 | . 4 6 . . Classes Destroyed 6 | . 6 . . . Worker 3 | . 3 . . . Builder 1 | . 1 . . . Hauler 1 | . 1 . . . Watcher 1 | . 1 . . . Swarmer 5 | . 3 2 . . Grunt 5 | . 1 4 . . Best Kill Streak 3 | . 3 2 . . Combat Bots Only 2 | . 2 2 . . Max Kills in Single Turn 2 | . 2 1 . . Gunslinging . | . . . . . Exploded . | . . . . . Melee . | . . . . . Uniques/NPCs Destroyed . | . . . . . Combat | -11 -10 -10 -10 -9 -------- Run | Yrd Mat Min Exi Min Hostile Shots Fired 87 | . 36 38 . 13 Missed 22 | . 9 11 . 2 Damage Taken 1002 | . 224 303 . 475 Core 255 | . 44 61 . 150 Absorbed by Shields . | . . . . . Core Remaining (%) 100 | 100 . . . . Volleys Fired 51 | . 21 21 6 3 Largest 2 | . 2 2 2 2 Hottest 80 | . 80 60 75 55 Shots Fired 88 | . 33 41 8 6 Gun 79 | . 33 41 2 3 Cannon 9 | . . . 6 3 Launcher . | . . . . . Special . | . . . . . Kinetic 54 | . 4 38 6 6 Thermal 8 | . 8 . . . Explosive . | . . . . . Electromagnetic 26 | . 21 3 2 . Robot Hit Streak 9 | . 4 9 . 1 Robot Miss Streak 5 | . 5 1 . 2 Penetration Max . | . . . . . Secondary Targets 2 | . . 2 . . Max Gunslinging Chain 1 | . . 1 . . Shots Hit Robots 48 | . 16 30 . 2 Core Hits 23 | . 11 12 . . Critical Kills 1 | . . 1 . . Critical Parts Destroyed . | . . . . . Critical Strikes 1 | . . 1 . . Destroy 1 | . . 1 . . Melee Attacks . | . . . . . Impact . | . . . . . Slashing . | . . . . . Piercing . | . . . . . Sneak Attacks . | . . . . . Combat Hostiles . | . . . . . Follow-up Attacks . | . . . . . Damage Inflicted 631 | 1 296 307 . 27 Guns 544 | . 229 307 . 8 Cannons 19 | . . . . 19 Explosions 55 | . 55 . . . Melee . | . . . . . Ramming 13 | 1 12 . . . Kinetic 303 | . 6 270 . 27 Thermal 99 | . 99 . . . Explosive . | . . . . . Electromagnetic 216 | . 179 37 . . Impact . | . . . . . Slashing . | . . . . . Piercing . | . . . . . Highest Corruption . | . . . . . Average Corruption . | . . . . . Corruption Purged . | . . . . . Corruption Blocked . | . . . . . Overload Shots . | . . . . . Overflow Damage . | . . . . . Projectiles . | . . . . . Explosions . | . . . . . Melee . | . . . . . Knockbacks . | . . . . . Impact . | . . . . . Kinetic . | . . . . . Secondary . | . . . . . Self-Inflicted Damage . | . . . . . Shots . | . . . . . Rammed 2 | 1 1 . . . Targets Rammed 3 | 1 2 . . . Kicked . | . . . . . Crushed 1 | . 1 . . . Highest Temperature 94 | . 94 53 31 15 Average Temperature 23 | . 34 18 17 9 Received Heat Transfer 168 | . 24 144 . . Siege Activations . | . . . . . Robots Corrupted . | . . . . . Combat Hostiles . | . . . . . Parts Fried 2 | . 2 . . . Impact Corruptions . | . . . . . Robots Melted . | . . . . . Combat Hostiles . | . . . . . Parts Melted . | . . . . . Heat Transferred 200 | . 200 . . . Parts Sabotaged . | . . . . . Parts Stolen . | . . . . . Parts Stripped . | . . . . . Power Chain Reactions 1 | . 1 . . . Alert | -11 -10 -10 -10 -9 ------- Run | Yrd Mat Min Exi Min Peak Influence 189 | . 189 152 . . Initial 7 | . . 7 . . Average 36 | . 58 29 . . Maximum Alert Level . | . . . . . Low Security (%) 100 | 100 100 100 . 100 Level 1 . | . . . . . Level 2 . | . . . . . Level 3 . | . . . . . Level 4 . | . . . . . Level 5 . | . . . . . High Security . | . . . . . Max Security . | . . . . . Squads Dispatched 1 | . 1 . . . Investigation 1 | . 1 . . . Extermination . | . . . . . Reinforcement . | . . . . . Assault . | . . . . . Garrison . | . . . . . Intercept . | . . . . . Searches Triggered . | . . . . . Construction Impeded . | . . . . . Haulers Reinforced . | . . . . . Active Scanning Responses . | . . . . . Cargo Convoy Interrupts . | . . . . . Stealth | -11 -10 -10 -10 -9 --------- Run | Yrd Mat Min Exi Min Distress Signals 1 | . 1 . . . Communications Jammed . | . . . . . Distress Signals . | . . . . . Times Spotted 19 | . 10 7 . 2 Peak Tracking Total 9 | . 4 3 9 2 Tactical Retreats 2 | . 1 1 . . Traps | -11 -10 -10 -10 -9 ------- Run | Yrd Mat Min Exi Min Traps Triggered . | . . . . . Indirectly . | . . . . . Trap Hack Attempts . | . . . . . Triggered . | . . . . . Disarmed . | . . . . . Reprogrammed . | . . . . . Reused . | . . . . . Traps Extracted . | . . . . . Installed . | . . . . . Triggered . | . . . . . Machines | -11 -10 -10 -10 -9 ---------- Run | Yrd Mat Min Exi Min Machines Disabled 2 | . . . 2 . Max in Single Turn 1 | . . . 1 . Machines Repaired . | . . . . . Machines Dismantled . | . . . . . Machines Sabotaged . | . . . . . Overloaded Fab Kills . | . . . . . Hacking | -11 -10 -10 -10 -9 --------- Run | Yrd Mat Min Exi Min Machines Accessed 4 | . 2 . 2 . Terminals 2 | . 2 . . . Fabricators . | . . . . . Repair Stations . | . . . . . Recycling Units . | . . . . . Scanalyzers . | . . . . . Garrison Access . | . . . . . Total Hacks 9 | . 7 . 2 . Successful 5 | . 3 . 2 . Failed 4 | . 4 . . . Catastrophic 2 | . 2 . . . Database Lockouts . | . . . . . Manual 7 | . 6 . 1 . Terminals 7 | . 7 . . . Fabricators . | . . . . . Repair Stations . | . . . . . Recycling Units . | . . . . . Scanalyzers . | . . . . . Garrison Access . | . . . . . Terminal Hacks 5 | . 3 . 2 . Record 1 | . . . 1 . Robot Analysis 2 | . 2 . . . Locate Traps 1 | . 1 . . . Derelict Proto ID Bank 1 | . . . 1 . Fabricator Hacks . | . . . . . Repair Station Hacks . | . . . . . Recycling Unit Hacks . | . . . . . Scanalyzer . | . . . . . Garrison Access Hacks . | . . . . . Unauthorized Hacks . | . . . . . Terminals . | . . . . . Fabricators . | . . . . . Repair Stations . | . . . . . Recycling Units . | . . . . . Scanalyzers . | . . . . . Garrison Access . | . . . . . Data Cores Recovered . | . . . . . Used . | . . . . . Hacking Detections 2 | . 2 . . . Full Trace Events 2 | . 2 . . . Feedback Events . | . . . . . Feedback Blocked . | . . . . . Robot Schematics Acquired . | . . . . . Robots Built . | . . . . . Authchips . | . . . . . Time . | . . . . . Total Robot Build Rating . | . . . . . Part Schematics Acquired . | . . . . . Parts Built . | . . . . . Authchips . | . . . . . Time . | . . . . . Total Part Build Rating . | . . . . . Parts Repaired . | . . . . . Time . | . . . . . Parts Recycled . | . . . . . Recycled Matter . | . . . . . Retrieved Matter . | . . . . . Retrieved Components . | . . . . . Parts Scanalyzed . | . . . . . Part Schematics Acquired . | . . . . . Parts Damaged . | . . . . . Bothacking | -11 -10 -10 -10 -9 ------------ Run | Yrd Mat Min Exi Min Used RIF Installer . | . . . . . Robots Hacked . | . . . . . Non-combat . | . . . . . Combat . | . . . . . Robot Hacks Applied . | . . . . . Relay Couplers Released . | . . . . . Fabnet Peak Effective % . | . . . . . Robots Rewired . | . . . . . Allies Hacked . | . . . . . Hacks Repelled . | . . . . . Allies | -11 -10 -10 -10 -9 -------- Run | Yrd Mat Min Exi Min Total Allies . | . . . . . Largest Group . | . . . . . Highest-Rated Group . | . . . . . Highest-Rated Ally . | . . . . . Total Orders . | . . . . . Ally Attacks . | . . . . . Total Damage . | . . . . . Kills . | . . . . . Allies Corrupted . | . . . . . Allies Melted . | . . . . . Intel | -11 -10 -10 -10 -9 ------- Run | Yrd Mat Min Exi Min Robot Analysis Total 2 | . 2 . . . Derelict Logs Recovered 1 | . . 1 . . Drone Launches . | . . . . . Drone Recoveries . | . . . . . Exploration | -11 -10 -10 -10 -9 ------------- Run | Yrd Mat Min Exi Min Turns Passed 2397 | 102 622 1125 506 42 Spaces Moved 1391 | 59 323 662 313 34 Core 4 | 4 . . . . Treads 1332 | 55 323 662 292 . Legs . | . . . . . Wheels 55 | . . . 21 34 Hover . | . . . . . Flight . | . . . . . Fastest Speed 50 | 50 160 160 95 95 Average Speed 157 | 152 160 160 155 95 Slowest Speed 160 | 160 160 160 160 95 Overloaded Moves . | . . . . . Propulsion Burnouts . | . . . . . Robots Hopped . | . . . . . Cave-ins Triggered . | . . . . . Exploration Rate (%) 45 | 4 48 98 69 8 Regions Visited 4 Branch Regions 3 Pre-discovered Areas 2 | . . 1 1 . Known Exits Taken . | . . . . . Unknown Exits Taken 4 | 1 1 1 1 . Scrap Searched 2 | . . 1 . 1 Spaces Dug . | . . . . . Terrain Destroyed 3 | . 3 . . . Melee . | . . . . . Projectile . | . . . . . AOE 3 | . 3 . . . Terrain Rammed . | . . . . . Walls Destroyed . | . . . . . Machines Disabled . | . . . . . Actions | -11 -10 -10 -10 -9 --------- Run | Yrd Mat Min Exi Min Total 1512 | 68 394 690 322 38 Wait 36 | . 33 3 . . Move 1388 | 59 322 661 312 34 Hop . | . . . . . Pick Up 14 | 3 8 2 1 . Fast Attach 9 | 6 3 . . . Attach 1 | . . 1 . . Detach 2 | . 2 . . . Swap 8 | . 2 2 3 1 Drop 1 | . 1 . . . Fire 51 | . 21 21 6 3 Melee . | . . . . . Ram . | . . . . . Kick . | . . . . . Crush 2 | . 2 . . . Escape Stasis . | . . . . . Rewire . | . . . . . Trap . | . . . . . Miscellaneous . | . . . . . Route ------- -11/Scrapyard -10/Materials (discovered 3 exits: [*Mat x2] / [*Min]) -10/Mines (discovered 3 exits: [*Mat x2] / *Exi) -10/Exiles -9/Mines History --------- Turn | Location | Event 8 | -11/Scrapyard | Discovered new exit (range 16) 103 | -11/Scrapyard | Entered Materials 305 | -10/Materials | Build established: Mutant 368 | -10/Materials | Discovered new exit (range 5) 594 | -10/Materials | Discovered new exit (range 12) 701 | -10/Materials | Discovered new exit (range 16) 725 | -10/Materials | Entered Mines 939 | -10/Mines | Deemed a non-threat by the Exiles lab entrance 939 | -10/Mines | Discovered new exit (range 5) 1020 | -10/Mines | Discovered new exit (range 5) 1175 | -10/Mines | Found a hidden stash of uninstalled traps 1183 | -10/Mines | Discovered new exit (range 15) 1417 | -10/Mines | Found a damaged Exp. Sensor Array with a note attached 1420 | -10/Mines | Found Prototype Device 1421 | -10/Mines | Identified Exp. Sensor Array 1569 | -10/Mines | Learned location of Storage (-9) 1714 | -10/Mines | Learned location of 1 exit from Materials 1850 | -10/Mines | Entered Exiles 1889 | -10/Exiles | Met 8R-AWN 1916 | -10/Exiles | Met EX-HEX 1975 | -10/Exiles | Met EX-DEC 2002 | -10/Exiles | Learned location of Zion (-7) 2122 | -10/Exiles | Met EX-BIN 2145 | -10/Exiles | Aligned with FarCom system 2146 | -10/Exiles | Given EX-Vault access code 2185 | -10/Exiles | Opened EX-Vault 2196 | -10/Exiles | Found 0b10 Alert Chip 2229 | -10/Exiles | Warned to stay clear of 0b10 Research branches 2338 | -10/Exiles | Attacked by the Exiles 2349 | -10/Exiles | Discovered new exit (range 10) 2356 | -10/Exiles | Left Exiles lab with 0b10 Alert Chip 2356 | -10/Exiles | Entered Mines 2375 | -9/Mines | Assembled infested the area 2389 | -9/Mines | Core integrity fell below 50% 2393 | -9/Mines | Core integrity fell below 20% 2398 | -9/Mines | Destroyed by D-53 Grenadier with Mini Grenade Launcher Last Messages --------------- 02361_ Searching scrap... 02361_ Found Datajack. 02361_ Found Ion Engine. 02361_ Found 34 Matter. 02362_ Acquired 34 matter. 02375_ ALERT: Infestation in the mines, dispatching Demolisher response squad. 02384_ C-30 ARC bursts open, deploying its payload. 02384_ D-53 Grenadier unfolds itself. 02389_ Ion Engine destroyed. 02393_ U-05 Engineer lays Concrete. 02394_ The unstable cave ceiling collapses. 02394_ U-05 Engineer lays Concrete. 02396_ Lgt. Armor Plating destroyed. 02396_ Lgt. Assault Rifle destroyed. 02396_ Wheel destroyed. 02396_ U-05 Engineer lays Concrete. 02397_ Lgt. Cannon destroyed. 02397_ U-05 Engineer lays Concrete. 02398_ The unstable cave ceiling collapses. Map ----- +----------------------------------------------------+ | ???????????????????????????????????? | | ???????????????????????????????????? | | ???????????????????????????????????? | | ???????????????????????????????????? | | ???????????????????????????????????? | | ???????????????????????????????????? | | ???????????????????????????????????? | | ???????????????????????????????????? | | ???????????????????????????????????? | | ???????????????????????????????????? | | ???????????????????????????????????? | | ???????????????????????????????????? | | ???????????????????????????????????? | | ???????????????????????????????????? | | ???????????????????????????????????? | | ???????????????????????????????????? | | ???????????????????????????????????? | | ???????????????????????????????????? | | ???????????????????????????????????? | | ???????????????????????????????????? | | ???????????????????????????????????? | | ??????????????????########????####?? | | ??????????????????? ##### #?? | | ????????????????????? % # #?? | | ??????????????????????#u #??? | | ??????????????????????# @ ##?? | | ??????????????????????# dd #?? | | ??????????????????????# #?? | | ??????????????????????# #?? | | ??????????????????????# #?? | | ?????????????????????## #? | | ?????????????????????# #? | | ??????????############ ? | | ??? | | ??????????############ ## ## | | ?????????????????????######## #? | | ????????????????????????????# # ###? | | ?????????????????????????????####??? | | ???????????????????????????????????? | | ???????????????????????????????????? | | ???????????????????????????????????? | | ???????????????????????????????????? | | ???????????????????????????????????? | | ???????????????????????????????????? | | ???????????????????????????????????? | | ???????????????????????????????????? | | ???????????????????????????????????? | | ???????????????????????????????????? | | ???????????????????????????????????? | | ???????????????????????????????????? | +----------------------------------------------------+ Best States ------------- Heat Dissipation 25 Energy Generation 10 Energy Capacity 250 Matter Stores 300 Matter Capacity 300 Sight Range 16 Terrain Scan Density 10 Armor Coverage 150 Evasion (%) 41 Recoil Reduction 2 Item Schematics ----------------- None Robot Schematics ------------------ None Fabricated ------------ Nothing Alien Tech Used ----------------- None Achievements -------------- None Challenges ------------ None Game ------ Seed PrecisionSubdwellerShotgun Manual? 0 Play Time 00:08:03 Cumulative 350.8 hours Start 2024.04.23 @ 07:53:48 End 2024.04.23 @ 08:01:15 Sessions 1 Manual Loads 0 Difficulty Rogue Special Mode None Game No. 229 Rogue 229 Adventurer 0 Explorer 0 Win Type - Total 22 Types 15/2/2/1/1/0/0/1/0 Lore% 84 Gallery% 86 Achievement% 78 Wizard Run 0 Options --------- Layout 0 ASCII 0 Keyboard 1 Movement Numpad Keybinds 0 Fullscreen 2 Font 18/SmallcapsGlow Map View 76x50 Zoom Use 0% Tactical HUD 1 Map Filters NONE Filters NONE Steam 1 RUN: 8496d213-c710-493e-9d2e-232166d434d1